bitfinex/quotes_BTCUSD_20241128
["timestamp","ask_amount","ask_price","bid_price","bid_amount"]
[1732810689908,0.87008982,95274.0,95273.0,2e-07]
[1732810690367,0.77620521,95274.0,95273.0,2e-07]
[1732810690583,0.78220521,95274.0,95273.0,0.0010002]
[1732810691014,0.79120521,95274.0,95273.0,0.0010002]
[1732810691233,0.79120521,95274.0,95273.0,2e-07]
[1732810692587,0.79120521,95274.0,95270.0,4e-07]
[1732810692588,0.426863,95271.0,95270.0,4e-07]
[1732810692811,0.52970821,95271.0,95270.0,4e-07]
[1732810693325,0.01,95254.0,95253.0,8e-07]
[1732810693548,0.376194,95243.0,95242.0,2e-07]
[1732810693797,0.47903921,95243.0,95242.0,2e-07]
[1732810694058,0.58187067,95243.0,95242.0,2e-07]
[1732810694531,0.60335302,95243.0,95242.0,2e-07]
[1732810695006,0.50952156,95243.0,95242.0,0.0010002]
[1732810695244,0.51381667,95243.0,95242.0,2e-07]
[1732810695689,0.52281667,95243.0,95242.0,0.0010002]
[1732810696180,0.51381667,95243.0,95242.0,2e-07]
[1732810696717,0.46633432,95243.0,95242.0,0.0010002]
[1732810697447,0.51833432,95243.0,95242.0,0.0010002]
[1732810698177,0.62116578,95243.0,95242.0,2e-07]
[1732810698892,0.66746578,95243.0,95242.0,2e-07]
[1732810699367,0.66746578,95243.0,95242.0,1.4e-07]
[1732810701971,0.56463432,95243.0,95242.0,1.4e-07]
[1732810708669,0.24713432,95243.0,95242.0,1.4e-07]
[1732810709108,0.24713432,95243.0,95242.0,0.00172374]
[1732810709319,0.24799612,95243.0,95242.0,0.00172374]
[1732810709763,0.23999612,95243.0,95242.0,0.00172374]
[1732810710196,0.22999612,95243.0,95242.0,0.00272374]
[1732810710621,0.23899612,95243.0,95242.0,0.00272374]
[1732810710848,0.37199612,95243.0,95242.0,0.00172374]
[1732810711057,0.37599612,95243.0,95242.0,0.00172374]
[1732810711278,0.38499612,95243.0,95242.0,0.00172374]
[1732810713471,0.38099612,95243.0,95242.0,0.00172374]
[1732810713684,0.38599612,95243.0,95242.0,0.00172374]
[1732810717141,0.1198558,95243.0,95242.0,0.00172374]
[1732810717575,0.12172018,95243.0,95242.0,0.00829163]
[1732810717799,0.12172018,95243.0,95242.0,0.00172374]
[1732810718038,0.10772018,95243.0,95242.0,0.00172374]
[1732810718259,0.00672618,95243.0,95242.0,0.0082919]
[1732810718501,0.0068618,95243.0,95242.0,0.0082919]
[1732810719608,0.0068618,95243.0,95242.0,0.1132869]
[1732810719609,0.0028618,95243.0,95242.0,0.1132869]
[1732810719860,0.0008618,95243.0,95242.0,0.2360869]
[1732810721201,0.0018618,95243.0,95242.0,0.2430869]
[1732810721446,0.1068558,95243.0,95242.0,0.1380919]
[1732810721695,0.10872018,95243.0,95242.0,0.0152919]
[1732810721970,0.10872018,95243.0,95242.0,0.00872374]
[1732810722649,0.0018618,95243.0,95242.0,0.11371874]
[1732810722860,0.0018618,95243.0,95242.0,0.12028645]
[1732810723084,0.0018618,95243.0,95242.0,0.11928645]
[1732810723509,0.0018618,95243.0,95242.0,0.11328645]
[1732810723737,0.0008618,95243.0,95242.0,0.12647514]
[1732810723954,0.1058558,95243.0,95242.0,0.01329145]
[1732810724177,0.1058558,95243.0,95242.0,0.11828645]
[1732810724178,0.0018618,95243.0,95242.0,0.11828645]
[1732810724419,0.0018618,95243.0,95242.0,0.11328645]
[1732810724644,0.0018618,95243.0,95242.0,0.16838645]
[1732810724645,0.0028618,95243.0,95242.0,0.16838645]
[1732810724862,0.0028618,95243.0,95242.0,0.25078645]
[1732810725122,0.0008618,95243.0,95242.0,0.24578645]
[1732810725342,0.0008618,95243.0,95242.0,0.25629337]
[1732810726043,0.0008618,95243.0,95242.0,0.25229337]
[1732810726315,0.0018618,95243.0,95242.0,0.25729337]
[1732810726504,0.0018618,95243.0,95242.0,0.26029337]
[1732810726776,0.0008618,95243.0,95242.0,0.23821874]
[1732810727003,0.0018618,95243.0,95242.0,0.26029243]
[1732810727229,0.0018618,95243.0,95242.0,0.25806628]
[1732810727460,0.0018618,95243.0,95242.0,0.25506628]
[1732810727909,0.0018618,95243.0,95242.0,0.25606628]
[1732810728150,0.0028618,95243.0,95242.0,0.26106628]
[1732810729063,0.0028618,95243.0,95242.0,0.36391149]
[1732810729314,0.0018618,95243.0,95242.0,0.35791149]
[1732810729530,0.0028618,95243.0,95242.0,0.36391149]
[1732810729758,0.0028618,95243.0,95242.0,0.26106628]
[1732810731725,0.0028618,95243.0,95242.0,0.36391149]
[1732810732208,0.0028618,95243.0,95242.0,0.45749574]
[1732810732459,0.0028618,95243.0,95242.0,0.36563509]
[1732810732798,0.0028618,95243.0,95242.0,0.63259571]
[1732810732946,0.0028618,95243.0,95242.0,0.39863509]
[1732810733416,0.0028618,95243.0,95242.0,0.39863191]
[1732810733659,0.0028618,95243.0,95242.0,0.55863191]
[1732810736051,0.0018618,95243.0,95242.0,0.55263191]
[1732810736482,0.0028618,95243.0,95242.0,0.56163191]
[1732810736758,0.0018618,95243.0,95242.0,0.55663191]
[1732810737405,0.0018618,95243.0,95242.0,0.79112296]
[1732810737833,0.0028618,95243.0,95242.0,0.79612296]
[1732810738263,0.0028618,95243.0,95242.0,0.56163191]
[1732810738475,0.0028618,95243.0,95242.0,0.55112698]
[1732810739403,0.0028618,95243.0,95242.0,0.73862961]
[1732810739627,0.0028618,95243.0,95242.0,0.55112698]
[1732810740060,0.0028618,95243.0,95242.0,0.55112681]
[1732810742292,0.0028618,95243.0,95242.0,0.6851709]
[1732810742516,0.0028618,95243.0,95242.0,0.69173631]
[1732810742963,0.0098331,95278.0,95277.0,0.104957]
[1732810743193,0.292284,95291.0,95253.0,0.01]
[1732810743194,0.00186438,95290.0,95268.0,0.15211398]
[1732810743430,0.00186438,95290.0,95278.0,0.314868]
[1732810743663,0.00186438,95290.0,95279.0,0.00656494]
[1732810743892,0.00186438,95290.0,95286.0,0.104947]
[1732810744103,0.187342,95291.0,95286.0,0.104947]
[1732810744359,0.187342,95291.0,95269.0,0.10284521]
[1732810744360,0.209885,95290.0,95269.0,0.10284521]
[1732810744585,0.00186438,95289.0,95270.0,0.00656438]
[1732810744809,0.00186438,95289.0,95284.0,0.104949]
[1732810744810,0.104944,95289.0,95284.0,0.104949]
[1732810745018,0.104945,95288.0,95285.0,0.00656438]
[1732810745252,0.104946,95287.0,95281.0,0.104951]
[1732810745463,0.005,95290.0,95281.0,0.209905]
[1732810745710,0.005,95290.0,95282.0,0.00656435]
[1732810745917,0.109943,95290.0,95285.0,0.104947]
[1732810746149,0.002,95289.0,95285.0,0.104947]
[1732810746361,0.002,95289.0,95279.0,0.001]
[1732810746362,0.002,95289.0,95286.0,0.00656434]
[1732810746568,0.106944,95289.0,95281.0,0.209905]
[1732810746790,0.104944,95289.0,95284.0,0.104948]
[1732810747091,0.104944,95289.0,95285.0,0.00656435]
[1732810747301,0.104944,95289.0,95284.0,0.104948]
[1732810747516,0.104945,95288.0,95284.0,0.104948]
[1732810747947,0.104943,95289.0,95283.0,0.104949]
[1732810748161,0.104943,95289.0,95258.0,0.09372557]
[1732810748162,0.104945,95288.0,95284.0,0.104949]
[1732810748596,0.0758,95302.0,95278.0,0.15211398]
[1732810748816,0.002,95289.0,95288.0,0.104945]
[1732810749304,0.0758,95302.0,95279.0,0.10284521]
[1732810749521,0.0758,95302.0,95301.0,0.10493]
[1732810749739,0.0758,95302.0,95290.0,0.15211398]
[1732810749740,0.0008622,95308.0,95290.0,0.15211398]
[1732810750003,0.0008622,95308.0,95284.0,0.0776]
[1732810750004,0.0008622,95308.0,95307.0,0.104924]
[1732810753897,0.0008622,95308.0,95307.0,0.11776375]
[1732810754117,0.0008622,95308.0,95307.0,0.22060896]
[1732810755265,0.0018622,95308.0,95307.0,0.22960896]
[1732810755746,0.0018622,95308.0,95307.0,0.38960896]
[1732810756005,0.0018622,95308.0,95307.0,0.42060896]
[1732810756006,0.0028622,95308.0,95307.0,0.42060896]
[1732810756222,0.0028622,95308.0,95307.0,0.5142213]
[1732810756448,0.0028622,95308.0,95307.0,0.42060896]
[1732810756685,0.0008631,95339.0,95338.0,0.104889]
[1732810759208,0.0008631,95339.0,95338.0,0.109889]
[1732810759655,0.0008631,95339.0,95338.0,0.104889]
[1732810760095,0.0008631,95339.0,95338.0,0.112889]
[1732810761232,0.0008631,95339.0,95338.0,0.117889]
[1732810761452,0.0008631,95339.0,95338.0,0.13090667]
[1732810761669,0.0008631,95339.0,95338.0,0.12590667]
[1732810762093,0.0008631,95339.0,95338.0,0.22875188]
[1732810762503,0.0008631,95339.0,95338.0,0.23275188]
[1732810765059,0.1813511,95339.0,95338.0,0.012]
[1732810765557,0.18321548,95339.0,95338.0,0.012]
[1732810766483,0.18321548,95339.0,95296.0,0.02117456]
[1732810766484,0.15,95335.0,95294.0,0.09336497]
[1732810766705,0.15,95335.0,95288.0,0.209889]
[1732810766706,0.0832,95305.0,95289.0,0.09336497]
[1732810766930,0.0832,95305.0,95290.0,0.10284521]
[1732810767143,0.10679238,95304.0,95297.0,0.104934]
[1732810767357,0.00186438,95304.0,95297.0,0.104934]
[1732810767597,0.00186438,95304.0,95295.0,0.209873]
[1732810767842,0.0832,95305.0,95302.0,0.104929]
[1732810768267,0.0832,95305.0,95290.0,0.10284521]
[1732810768268,0.00186438,95308.0,95305.0,0.104926]
[1732810768490,0.104923,95308.0,95302.0,0.104929]
[1732810768712,0.00186438,95310.0,95305.0,0.104925]
[1732810769668,0.104919,95311.0,95305.0,0.104925]
[1732810769878,0.00186438,95310.0,95305.0,0.104925]
[1732810770092,0.10678438,95310.0,95305.0,0.104925]
[1732810770303,0.104922,95309.0,95304.0,0.104926]
[1732810770529,0.00186438,95308.0,95292.0,0.209881]
[1732810770752,0.104928,95304.0,95293.0,0.104939]
[1732810770973,0.209848,95307.0,95292.0,0.10284521]
[1732810770974,0.10493,95302.0,95292.0,0.10284521]
[1732810771195,0.10493,95302.0,95297.0,0.104934]
[1732810771655,0.209848,95307.0,95292.0,0.10284521]
[1732810771901,0.00186438,95306.0,95298.0,0.104933]
[1732810772129,0.00186438,95305.0,95292.0,0.001]
[1732810772347,0.0452,95311.0,95294.0,0.104937]
[1732810772348,0.00186438,95310.0,95294.0,0.104937]
[1732810772575,0.0452,95311.0,95294.0,0.104937]
[1732810772576,0.209859,95302.0,95294.0,0.104937]
[1732810772838,0.00186438,95301.0,95293.0,0.104939]
[1732810773073,0.104932,95300.0,95295.0,0.104937]
[1732810773299,0.00186438,95301.0,95294.0,0.104937]
[1732810773523,0.209832,95315.0,95295.0,0.10284521]
[1732810773735,0.21169838,95313.0,95305.0,0.104925]
[1732810773965,0.10492,95310.0,95305.0,0.104925]
[1732810774205,0.0492,95322.0,95295.0,0.10284521]
[1732810774206,0.104926,95305.0,95299.0,0.104932]
[1732810774441,0.104926,95305.0,95294.0,0.209875]
[1732810774442,0.209852,95305.0,95294.0,0.209875]
[1732810774652,0.209852,95305.0,95296.0,0.104935]
[1732810774653,0.104929,95303.0,95296.0,0.104935]
[1732810775104,0.0098802,95314.0,95294.0,0.10284521]
[1732810775328,0.104926,95305.0,95297.0,0.104935]
[1732810775557,0.00186438,95310.0,95295.0,0.209874]
[1732810775780,0.00186438,95310.0,95294.0,0.10284521]
[1732810776006,0.209859,95302.0,95294.0,0.10284521]
[1732810776235,0.00186438,95308.0,95294.0,0.10284521]
[1732810776448,0.104932,95300.0,95294.0,0.20778221]
[1732810776729,0.104929,95302.0,95296.0,0.104935]
[1732810776960,0.209847,95308.0,95296.0,0.104935]
[1732810777206,0.104931,95301.0,95299.0,0.004]
[1732810777443,0.00186438,95311.0,95299.0,0.004]
[1732810777701,0.2198171,95315.0,95299.0,0.004]
[1732810777702,0.00186438,95310.0,95299.0,0.004]
[1732810777956,0.104931,95301.0,95299.0,0.004]
[1732810778175,0.104931,95301.0,95290.0,0.209884]
[1732810778176,0.209867,95298.0,95285.0,0.01275709]
[1732810778393,0.0828,95299.0,95294.0,0.004]
[1732810778609,0.104935,95297.0,95294.0,0.004]
[1732810778822,0.0828,95299.0,95286.0,0.10284521]
[1732810779050,0.0828,95299.0,95293.0,0.104938]
[1732810779051,0.187733,95299.0,95293.0,0.104938]
[1732810779303,0.0828,95299.0,95286.0,0.10284521]
[1732810779512,0.104925,95306.0,95301.0,0.10493]
[1732810779951,0.104927,95305.0,95299.0,0.104932]
[1732810780162,0.104927,95305.0,95299.0,0.105932]
[1732810780430,0.104928,95303.0,95299.0,0.001]
[1732810780643,0.104928,95303.0,95298.0,0.104933]
[1732810780868,0.20985,95306.0,95295.0,0.209873]
[1732810781091,0.00186438,95308.0,95293.0,0.001722]
[1732810781312,0.104927,95304.0,95294.0,0.108938]
[1732810781527,0.0759,95309.0,95294.0,0.108938]
[1732810781528,0.104932,95300.0,95295.0,0.104936]
[1732810781752,0.10493,95302.0,95297.0,0.104934]
[1732810781973,0.104931,95301.0,95298.0,0.001]
[1732810782210,0.00186438,95303.0,95298.0,0.001]
[1732810782426,0.209859,95302.0,95298.0,0.003]
[1732810782630,0.104932,95300.0,95298.0,0.003]
[1732810782850,0.104927,95304.0,95299.0,0.104932]
[1732810783318,0.104927,95305.0,95298.0,0.002]
[1732810783548,0.104928,95303.0,95298.0,0.106933]
[1732810783766,0.10679038,95305.0,95300.0,0.104931]
[1732810783981,0.104926,95306.0,95300.0,0.104931]
[1732810784268,0.104933,95299.0,95298.0,0.01318916]
[1732810784698,0.104931,95301.0,95295.0,0.104936]
[1732810784912,0.104929,95302.0,95298.0,0.002]
[1732810785136,0.00186438,95305.0,95298.0,0.002]
[1732810785352,0.10493,95301.0,95296.0,0.104935]
[1732810785581,0.104933,95299.0,95298.0,0.004]
[1732810785768,0.104933,95299.0,95294.0,0.104938]
[1732810786019,0.104938,95294.0,95293.0,0.01453653]
[1732810786481,0.209874,95296.0,95293.0,0.01453653]
[1732810786482,0.104937,95295.0,95293.0,0.01453653]
[1732810786718,0.209874,95296.0,95293.0,0.01453653]
[1732810786719,0.104938,95294.0,95293.0,0.01453653]
[1732810786949,0.046,95302.0,95293.0,0.11947553]
[1732810787165,0.104933,95299.0,95293.0,0.11947553]
[1732810787590,0.104933,95299.0,95293.0,0.12247553]
[1732810787810,0.104933,95299.0,95298.0,0.002]
[1732810788304,0.104933,95299.0,95293.0,0.11947553]
[1732810788526,0.104933,95299.0,95294.0,0.104938]
[1732810788990,0.09388454,95353.0,95293.0,0.01653653]
[1732810788991,0.209839,95312.0,95300.0,0.10493]
[1732810789205,0.209839,95312.0,95293.0,0.01653653]
[1732810789206,0.104927,95304.0,95298.0,0.318799]
[1732810789432,0.104927,95304.0,95298.0,0.314799]
[1732810789679,0.00186438,95307.0,95293.0,0.01653653]
[1732810789897,0.104929,95303.0,95295.0,0.104937]
[1732810790133,0.209839,95311.0,95298.0,0.002]
[1732810790366,0.0484,95313.0,95308.0,0.104922]
[1732810790367,0.104917,95313.0,95308.0,0.104922]
[1732810790562,0.104921,95310.0,95299.0,0.104932]
[1732810790839,0.104919,95311.0,95306.0,0.104924]
[1732810791292,0.00186438,95313.0,95306.0,0.104924]
[1732810791505,0.209839,95311.0,95301.0,0.20986]
[1732810791719,0.209839,95311.0,95298.0,0.10284521]
[1732810791720,0.104921,95310.0,95302.0,0.0065632]
[1732810792035,0.104922,95309.0,95304.0,0.104927]
[1732810792260,0.0808,95317.0,95305.0,0.104925]
[1732810792261,0.10492,95310.0,95305.0,0.104925]
[1732810792480,0.209841,95311.0,95301.0,0.209861]
[1732810792693,0.104922,95309.0,95304.0,0.104927]
[1732810792928,0.104922,95309.0,95305.0,0.104926]
[1732810793415,0.104922,95309.0,95306.0,0.00656319]
[1732810793638,0.003,95313.0,95305.0,0.104926]
[1732810793852,0.001,95311.0,95306.0,0.00656302]
[1732810794075,0.001,95311.0,95309.0,0.104921]
[1732810794301,0.107917,95313.0,95307.0,0.00656302]
[1732810794302,0.107917,95313.0,95310.0,0.00656302]
[1732810794519,0.107917,95313.0,95307.0,0.104923]
[1732810794520,0.104919,95312.0,95311.0,0.00656302]
[1732810794749,0.003,95313.0,95311.0,0.00656302]
[1732810794750,0.003,95313.0,95312.0,0.104918]
[1732810794977,0.209792,95333.0,95312.0,0.104918]
[1732810794978,0.183604,95325.0,95320.0,0.104909]
[1732810795208,0.0787,95325.0,95321.0,0.01706299]
[1732810795426,0.0787,95325.0,95297.0,0.15077624]
[1732810795427,0.00186438,95324.0,95307.0,0.01328688]
[1732810795668,0.104921,95310.0,95308.0,0.01050004]
[1732810795916,0.209819,95321.0,95309.0,0.01706256]
[1732810795917,0.104919,95312.0,95309.0,0.01706256]
[1732810796145,0.104917,95313.0,95310.0,0.01706256]
[1732810796365,0.20983,95316.0,95311.0,0.01706256]
[1732810796578,0.104918,95312.0,95307.0,0.104923]
[1732810796767,0.104918,95312.0,95308.0,0.01706277]
[1732810797052,0.001,95313.0,95309.0,0.0065626]
[1732810797053,0.104917,95313.0,95309.0,0.0065626]
[1732810797275,0.104913,95317.0,95312.0,0.104918]
[1732810797495,0.104912,95318.0,95313.0,0.0065626]
[1732810797707,0.104913,95317.0,95314.0,0.0065626]
[1732810797921,0.104913,95317.0,95315.0,0.0065626]
[1732810798138,0.104913,95317.0,95316.0,0.0065626]
[1732810798877,0.104912,95318.0,95316.0,0.0065626]
[1732810799115,0.104912,95318.0,95316.0,0.00656247]
[1732810799346,0.104912,95318.0,95317.0,0.00656247]
[1732810799557,0.209816,95322.0,95317.0,0.00656246]
[1732810799771,0.209816,95322.0,95313.0,0.104916]
[1732810799772,0.104911,95318.0,95313.0,0.104916]
[1732810799984,0.104911,95318.0,95314.0,0.00656244]
[1732810800200,0.104911,95318.0,95315.0,0.00656244]
[1732810800439,0.21168138,95321.0,95316.0,0.00656244]
[1732810800440,0.00186438,95321.0,95316.0,0.00656244]
[1732810800658,0.002,95318.0,95317.0,0.21432065]
[1732810800877,0.003,95318.0,95317.0,0.21432065]
[1732810801099,0.001,95318.0,95317.0,0.21432065]
[1732810801317,0.001,95318.0,95317.0,0.20775821]
[1732810801534,0.002,95318.0,95317.0,0.21431989]
[1732810802215,0.001,95318.0,95317.0,0.11147468]
[1732810802637,0.003,95318.0,95317.0,0.11147468]
[1732810802862,0.00186438,95329.0,95317.0,0.00656168]
[1732810803080,0.0812,95333.0,95326.0,0.209805]
[1732810803308,0.10676138,95332.0,95327.0,0.00656168]
[1732810803593,0.10676138,95332.0,95328.0,0.00656168]
[1732810803594,0.104898,95331.0,95328.0,0.00656168]
[1732810803800,0.00186438,95332.0,95329.0,0.00656168]
[1732810804016,0.0812,95333.0,95327.0,0.209802]
[1732810804234,0.00272538,95338.0,95330.0,0.104897]
[1732810804453,0.00272538,95338.0,95327.0,0.209802]
[1732810804672,0.002,95332.0,95328.0,0.1049]
[1732810804894,0.002,95332.0,95329.0,0.00656143]
[1732810805112,0.002,95332.0,95330.0,0.00656143]
[1732810805325,0.002,95332.0,95329.0,0.104899]
[1732810805552,0.002,95332.0,95330.0,0.00656146]
[1732810805760,0.002,95332.0,95327.0,0.209802]
[1732810805972,0.002,95332.0,95330.0,0.104898]
[1732810806202,0.104894,95334.0,95331.0,0.00656147]
[1732810806414,0.104894,95334.0,95328.0,0.1049]
[1732810806624,0.104894,95334.0,95327.0,0.209802]
[1732810806625,0.104894,95334.0,95330.0,0.001]
[1732810806845,0.209784,95336.0,95330.0,0.104898]
[1732810807327,0.209784,95336.0,95330.0,0.105898]
[1732810807595,0.000861,95338.0,95332.0,0.104895]
[1732810807815,0.000861,95338.0,95328.0,0.2108]
[1732810808039,0.000861,95338.0,95329.0,0.10284521]
[1732810808270,0.000861,95338.0,95329.0,0.10940611]
[1732810808490,0.000861,95338.0,95330.0,0.0065609]
[1732810808702,0.209784,95336.0,95331.0,0.0065609]
[1732810808914,0.000861,95338.0,95332.0,0.0065609]
[1732810809126,0.105751,95338.0,95333.0,0.0065609]
[1732810809374,0.105751,95338.0,95334.0,0.0065609]
[1732810809590,0.000861,95338.0,95333.0,0.104895]
[1732810809800,0.000861,95338.0,95334.0,0.0065609]
[1732810810037,0.000861,95338.0,95331.0,0.209793]
[1732810810258,0.000861,95338.0,95334.0,0.104893]
[1732810810476,0.000861,95338.0,95337.0,0.104891]
[1732810810687,0.001861,95338.0,95335.0,0.104893]
[1732810810902,0.001861,95338.0,95336.0,0.11145287]
[1732810811141,0.001861,95338.0,95334.0,0.104893]
[1732810811142,0.000861,95338.0,95334.0,0.104893]
[1732810811370,0.000861,95338.0,95331.0,0.209793]
[1732810811371,0.000861,95338.0,95331.0,0.210793]
[1732810811616,0.000861,95338.0,95332.0,0.00656091]
[1732810811841,0.000861,95338.0,95320.0,0.09381091]
[1732810811842,0.104907,95322.0,95320.0,0.09381091]
[1732810812063,0.104907,95322.0,95321.0,0.00656168]
[1732810812306,0.209822,95319.0,95314.0,0.09381091]
[1732810812563,0.00186438,95318.0,95315.0,0.00656209]
[1732810812779,0.00186438,95321.0,95302.0,0.09381091]
[1732810813004,0.104922,95308.0,95307.0,0.01332091]
[1732810813222,0.209815,95322.0,95307.0,0.00656234]
[1732810813476,0.104907,95322.0,95321.0,0.001]
[1732810813750,0.209831,95315.0,95298.0,0.1085302]
[1732810813975,0.002,95318.0,95299.0,0.00656274]
[1732810814195,0.104927,95305.0,95300.0,0.00656274]
[1732810814434,0.104927,95305.0,95301.0,0.00656274]
[1732810814676,0.104927,95305.0,95300.0,0.104931]
[1732810814890,0.209849,95307.0,95298.0,0.1175645]
[1732810814891,0.104924,95307.0,95302.0,0.00656274]
[1732810815101,0.104925,95306.0,95303.0,0.00656277]
[1732810815333,0.209844,95309.0,95304.0,0.00656277]
[1732810815334,0.104926,95305.0,95304.0,0.00656277]
[1732810815773,0.209838,95312.0,95304.0,0.00656277]
[1732810815997,0.104921,95309.0,95305.0,0.00656277]
[1732810816241,0.104924,95308.0,95304.0,0.00656277]
[1732810816454,0.209841,95310.0,95300.0,0.106931]
[1732810816667,0.00186438,95315.0,95301.0,0.00656278]
[1732810816885,0.00186438,95315.0,95304.0,0.005]
[1732810817109,0.104926,95305.0,95300.0,0.002]
[1732810817342,0.104926,95305.0,95301.0,0.00656283]
[1732810817584,0.104926,95305.0,95304.0,0.003]
[1732810817817,0.104926,95305.0,95304.0,0.00856283]
[1732810818261,0.104926,95305.0,95304.0,0.00656283]
[1732810818474,0.104925,95306.0,95304.0,0.00656283]
[1732810818705,0.104918,95312.0,95305.0,0.00656283]
[1732810818937,0.104923,95308.0,95306.0,0.00656283]
[1732810819181,0.209837,95312.0,95307.0,0.00656283]
[1732810819420,0.209839,95311.0,95304.0,0.002]
[1732810819650,0.104926,95306.0,95305.0,0.00656281]
[1732810820106,0.104926,95306.0,95305.0,0.00756281]
[1732810820344,0.104926,95306.0,95305.0,0.00656281]
[1732810821202,0.104926,95306.0,95305.0,0.01056281]
[1732810821704,0.209839,95311.0,95305.0,0.01056281]
[1732810821705,0.209843,95309.0,95305.0,0.01056281]
[1732810821936,0.20981,95325.0,95306.0,0.00656281]
[1732810822152,0.104918,95313.0,95308.0,0.104922]
[1732810822359,0.104918,95313.0,95309.0,0.00656281]
[1732810822575,0.104918,95313.0,95308.0,0.104922]
[1732810822576,0.104918,95313.0,95310.0,0.00656281]
[1732810822863,0.20981,95325.0,95311.0,0.00656281]
[1732810822864,0.209815,95322.0,95311.0,0.00656281]
[1732810823082,0.209815,95322.0,95310.0,0.31268521]
[1732810823083,0.10491,95320.0,95315.0,0.104915]
[1732810823295,0.10491,95320.0,95316.0,0.00656281]
[1732810823510,0.10491,95320.0,95316.0,0.104913]
[1732810823965,0.0834,95323.0,95310.0,0.10284521]
[1732810824177,0.0834,95323.0,95311.0,0.00656249]
[1732810824394,0.0834,95323.0,95315.0,0.104915]
[1732810824395,0.104911,95319.0,95315.0,0.104915]
[1732810824608,0.104913,95317.0,95312.0,0.104918]
[1732810824825,0.104913,95317.0,95316.0,0.0065625]
[1732810825286,0.104911,95319.0,95316.0,0.0065625]
[1732810825504,0.104911,95319.0,95310.0,0.11568323]
[1732810825716,0.104911,95319.0,95311.0,0.00656247]
[1732810825717,0.001,95319.0,95311.0,0.00656247]
[1732810825927,0.104916,95314.0,95312.0,0.00656247]
[1732810826154,0.104916,95314.0,95313.0,0.00656247]
[1732810826363,0.104915,95315.0,95313.0,0.00656247]
[1732810826605,0.104915,95315.0,95314.0,0.00656247]
[1732810827253,0.104915,95315.0,95310.0,0.22060323]
[1732810827254,0.104915,95315.0,95311.0,0.001722]
[1732810827476,0.104915,95315.0,95312.0,0.00656254]
[1732810827681,0.001,95319.0,95314.0,0.104915]
[1732810828122,0.209819,95320.0,95315.0,0.00656251]
[1732810828352,0.104913,95317.0,95315.0,0.00656251]
[1732810828575,0.104913,95317.0,95314.0,0.001]
[1732810828793,0.104913,95317.0,95315.0,0.00656248]
[1732810829011,0.104913,95317.0,95316.0,0.00656248]
[1732810829326,0.16,95350.0,95316.0,0.00656248]
[1732810829327,0.0912511,95331.0,95316.0,0.10940769]
[1732810829411,0.0099511,95331.0,95317.0,0.104913]
[1732810829622,0.1148481,95331.0,95325.0,0.104903]
[1732810829848,0.1148481,95331.0,95326.0,0.11146448]
[1732810829849,0.104897,95331.0,95326.0,0.11146448]
[1732810830087,0.0813,95337.0,95327.0,0.00656248]
[1732810830324,0.1049,95328.0,95319.0,0.20982]
[1732810830568,0.0813,95337.0,95320.0,0.10940679]
[1732810830793,0.005,95331.0,95321.0,0.00656158]
[1732810831011,0.104907,95323.0,95322.0,0.00656158]
[1732810831228,0.1049,95329.0,95324.0,0.104904]
[1732810831449,0.104903,95326.0,95322.0,0.11146858]
[1732810831676,0.104901,95328.0,95324.0,0.104905]
[1732810831898,0.104901,95328.0,95325.0,0.00656161]
[1732810832105,0.104901,95328.0,95324.0,0.104905]
[1732810832106,0.104901,95328.0,95326.0,0.00656161]
[1732810832324,0.104901,95328.0,95327.0,0.00656161]
[1732810832551,0.1049,95329.0,95327.0,0.00756161]
[1732810832771,0.1049,95328.0,95324.0,0.104905]
[1732810833012,0.104892,95336.0,95332.0,0.104896]
[1732810833263,0.0813,95337.0,95326.0,0.419612]
[1732810833264,0.08191897,95337.0,95326.0,0.419612]
[1732810833503,0.08191897,95337.0,95320.0,0.10284521]
[1732810833504,0.00061897,95337.0,95336.0,0.104892]
[1732810833720,0.00061897,95337.0,95336.0,0.21429833]
[1732810834173,0.00061897,95337.0,95336.0,0.35536675]
[1732810834387,0.00061897,95337.0,95336.0,0.21429833]
[1732810834628,0.00061897,95337.0,95336.0,0.35526009]
[1732810834629,0.00261897,95337.0,95336.0,0.35526009]
[1732810835059,0.00261897,95337.0,95336.0,0.35626009]
[1732810835843,0.00261897,95337.0,95336.0,0.35526009]
[1732810836051,0.00261897,95337.0,95336.0,0.35826009]
[1732810836291,0.00061897,95337.0,95336.0,0.36875605]
[1732810836534,0.00061897,95337.0,95336.0,0.36869151]
[1732810836776,0.00061897,95337.0,95336.0,0.37169151]
[1732810837016,0.00061897,95337.0,95336.0,0.22779429]
[1732810837251,0.00161897,95337.0,95336.0,0.23679429]
[1732810837492,0.00161897,95337.0,95336.0,0.32770204]
[1732810837737,0.00161897,95337.0,95336.0,0.23679429]
[1732810837969,0.00161897,95337.0,95336.0,0.21973721]
[1732810838216,0.00161897,95337.0,95336.0,0.24627164]
[1732810838698,0.00161897,95337.0,95336.0,0.25127164]
[1732810838935,0.00161897,95337.0,95336.0,0.34514388]
[1732810839172,0.00161897,95337.0,95336.0,0.25127164]
[1732810839404,0.00161897,95337.0,95336.0,0.34513286]
[1732810840386,0.00161897,95337.0,95336.0,0.25127164]
[1732810840855,0.00161897,95337.0,95336.0,0.34513286]
[1732810841331,0.00161897,95337.0,95336.0,0.25127164]
[1732810843323,0.00161897,95337.0,95336.0,0.13793035]
[1732810845430,0.00161897,95337.0,95336.0,0.13793078]
[1732810845870,0.00161897,95337.0,95336.0,0.03303878]
[1732810846325,0.00161897,95337.0,95336.0,0.0264783]
[1732810846807,0.00161897,95337.0,95336.0,0.1313703]
[1732810847236,0.07661897,95337.0,95336.0,0.0264783]
[1732810847681,0.07661897,95337.0,95336.0,0.1313703]
[1732810848116,0.07661897,95337.0,95336.0,0.0264783]
[1732810848813,0.07661897,95337.0,95336.0,0.1313703]
[1732810849966,0.07661897,95337.0,95336.0,0.0264783]
[1732810850202,0.00161897,95337.0,95336.0,0.1313703]
[1732810850415,0.00161897,95337.0,95336.0,0.13793107]
[1732810850628,0.00165897,95337.0,95336.0,0.13793107]
[1732810852161,0.00165897,95337.0,95336.0,0.03303907]
[1732810852644,0.10654997,95337.0,95336.0,0.02056077]
[1732810852860,0.18704997,95337.0,95336.0,0.014]